[Event "8th Brazilian Open SESC Caioba 2024"]
[Site "Caioba"]
[Date "2024.06.27"]
[Round "6.8"]
[White "Cubas, Jose Fernando"]
[Black "Rodi, Luis Ernesto"]
[Result "1/2-1/2"]
[ECO "C41"]
[WhiteElo "2417"]
[BlackElo "2208"]
[Annotator "RC"]
[PlyCount "96"]
[EventDate "2024.06.15"]
[EventCountry "BRA"]
[SourceTitle "playchess.com"]
[Source "ChessBase"]
[SourceQuality "1"]
[TimeControl "5400+30"]

1. e4 {[%emt 0:02:16]} d6 {[%emt 0:00:32]} 2. d4 {[%emt 0:00:20]} Nf6 {[%emt 0:00:06]} 3. Nc3 {[%emt 0:00:04]} e5 {[%emt 0:00:29]} 4. Nf3 {[%emt 0:00:26]} Nbd7 {[%emt 0:00:11]} 5. Bc4 {[%emt 0:13:37]} Be7 {[%emt 0:00:55]} 6. O-O {[%emt 0:00:05]} O-O {[%emt 0:00:12]} 7. Re1 {[%emt 0:00:03]} c6 {[%emt 0:00:07]} 8. a4 {[%emt 0:00:03]} b6 {[%emt 0:00:09]} 9. Ba2 {[%emt 0:06:08]} a6 {[%emt 0:00:41]} 10. Nh4 {[%emt 0:06:23]} exd4 {[%emt 0:00:23]} 11. Qxd4 {[%emt 0:00:09]} Nc5 {[%emt 0:00:10]} 12. Nf3 {[%emt 0:22:07]} Be6 {[%emt 0:00:44]} 13. Bxe6 {[%emt 0:08:57]} Nxe6 {[%emt 0:00:20]} 14. Qc4 {[%emt 0:03:43]} Qc8 {[%emt 0:04:45]} 15. Nd4 {[%emt 0:01:32]} Nc5 {[%emt 0:04:29]} 16. b4 {[%emt 0:05:46]} b5 {[%emt 0:01:00]} 17. Qa2 {[%emt 0:00:01]} Ne6 {[%emt 0:01:54]} 18. Nf5 {[%emt 0:00:11]} Qb7 {[%emt 0:00:26]} 19. Nxe7+ {[%emt 0:07:21]} Qxe7 {[%emt 0:00:05]} 20. axb5 {[%emt 0:00:04]} axb5 {[%emt 0:03:20]} 21. Qxa8 {[%emt 0:00:07]} Rxa8 {[%emt 0:00:06]} 22. Rxa8+ {[%emt 0:00:03]} Nf8 {[%emt 0:00:07]} 23. Bf4 {[%emt 0:10:40]} Nh5 {[%emt 0:02:22]} 24. Be3 {[%emt 0:00:29]} h6 {[%emt 0:00:15]} 25. Rea1 {[%emt 0:01:42]} Kh7 {[%emt 0:03:21]} 26. R1a6 {[%emt 0:00:25]} Nf6 {[%emt 0:05:27]} 27. Rxc6 {[%emt 0:00:40]} Nxe4 {[%emt 0:01:06]} 28. Nxe4 {[%emt 0:04:17]} Qxe4 {[%emt 0:00:55]} 29. Rcc8 {[%emt 0:01:30]} Qxb4 {[%emt 0:00:31]} 30. h4 {[%emt 0:00:14]} Ne6 {[%emt 0:07:16]} 31. h5 {[%emt 0:00:04]} g6 {[%emt 0:00:10]} 32. Ra7 {[%emt 0:03:28]} Kg7 {[%emt 0:02:08]} 33. Re8 {[%emt 0:00:01]} Kf6 {[%emt 0:04:09]} 34. Ree7 {[%emt 0:00:02]} Ng5 {[%emt 0:00:44]} 35. hxg6 {[%emt 0:04:15]} fxg6 {[%emt 0:00:50]} 36. Red7 {[%emt 0:00:15]} Kf5 {[%emt 0:01:04]} 37. Ra6 {[%emt 0:00:44]} Ne4 {[%emt 0:05:56]} 38. Rf7+ {[%emt 0:00:21]} Ke6 {[%emt 0:00:10]} 39. Rg7 {[%emt 0:00:31]} Qe1+ {[%emt 0:04:49]} 40. Kh2 {[%emt 0:00:01]} Nxf2 {[%emt 0:00:34]} 41. Rxg6+ {[%emt 0:00:48]} Kf5 {[%emt 0:00:14]} 42. Bxf2 {[%emt 0:00:46]} Qxf2 {[%emt 0:00:07]} 43. Rgxd6 {[%emt 0:00:49]} Qh4+ {[%emt 0:10:12]} 44. Kg1 {[%emt 0:00:02]} Qe1+ {[%emt 0:00:14]} 45. Kh2 {[%emt 0:00:02]} Qh4+ {[%emt 0:06:22]} 46. Kg1 {[%emt 0:00:04]} Qe1+ {[%emt 0:00:22]} 47. Kh2 {[%emt 0:00:04]} Qh4+ {[%emt 0:00:24]} 48. Kg1 {[%emt 0:00:08]} Qe1+ {[%emt 0:00:07]} 1/2-1/2

[Event "8th Brazilian Open SESC Caioba 2024"]
[Site "Caioba"]
[Date "2024.06.27"]
[Round "6.9"]
[White "Aranha Filho, Alvaro Z."]
[Black "Sunye Neto, Jaime"]
[Result "1/2-1/2"]
[ECO "E18"]
[WhiteElo "2200"]
[BlackElo "2398"]
[Annotator "RC"]
[PlyCount "25"]
[EventDate "2024.06.15"]
[EventCountry "BRA"]
[SourceTitle "playchess.com"]
[Source "ChessBase"]
[SourceQuality "1"]
[TimeControl "5400+30"]

1. d4 {[%emt 0:00:04]} Nf6 {[%emt 0:00:06]} 2. c4 {[%emt 0:00:09]} e6 {[%emt 0:00:38]} 3. Nf3 {[%emt 0:00:14]} b6 {[%emt 0:04:03]} 4. g3 {[%emt 0:00:16]} Bb7 {[%emt 0:00:44]} 5. Bg2 {[%emt 0:00:11]} d5 {[%emt 0:02:08]} 6. cxd5 {[%emt 0:02:48]} exd5 {[%emt 0:01:18]} 7. O-O {[%emt 0:00:50]} Be7 {[%emt 0:00:10]} 8. Nc3 {[%emt 0:01:59]} O-O {[%emt 0:00:25]} 9. Ne5 {[%emt 0:00:14]} Na6 {[%emt 0:03:49]} 10. Bg5 {[%emt 0:02:21]} h6 {[%emt 0:07:31]} 11. Bxf6 {[%emt 0:00:46]} Bxf6 {[%emt 0:00:21]} 12. f4 {[%emt 0:00:29]} c6 {[%emt 0:08:58]} 13. e4 {[%emt 0:06:53]} 1/2-1/2

[Event "8th Brazilian Open SESC Caioba 2024"]
[Site "Caioba"]
[Date "2024.06.27"]
[Round "6.10"]
[White "Rodriguez Vila, Andres"]
[Black "Duarte Napoles, Fanny"]
[Result "0-1"]
[ECO "B13"]
[WhiteElo "2396"]
[BlackElo "2202"]
[Annotator "RC"]
[PlyCount "82"]
[EventDate "2024.06.15"]
[EventCountry "BRA"]
[SourceTitle "playchess.com"]
[Source "ChessBase"]
[SourceQuality "1"]
[TimeControl "5400+30"]

1. d4 {[%emt 0:00:03]} d5 {[%emt 0:06:14]} 2. Nc3 {[%emt 0:00:09]} Nf6 {[%emt 0:00:21]} 3. Bf4 {[%emt 0:00:05]} c5 {[%emt 0:00:32]} 4. e3 {[%emt 0:00:05]} cxd4 {[%emt 0:00:11]} 5. exd4 {[%emt 0:00:05]} Bg4 {[%emt 0:00:38]} 6. f3 {[%emt 0:00:10]} Bd7 {[%emt 0:00:06]} 7. Bd3 {[%emt 0:00:10]} e6 {[%emt 0:00:22]} 8. Nge2 {[%emt 0:00:15]} a6 {[%emt 0:00:24]} 9. a3 {[%emt 0:01:06]} Nc6 {[%emt 0:00:17]} 10. Qd2 {[%emt 0:00:37]} Rc8 {[%emt 0:00:20]} 11. O-O {[%emt 0:01:35]} Na5 {[%emt 0:02:05]} 12. b3 {[%emt 0:00:28]} b5 {[%emt 0:00:15]} 13. a4 {[%emt 0:17:00]} Bb4 {[%emt 0:01:13]} 14. axb5 {[%emt 0:01:18]} axb5 {[%emt 0:00:58]} 15. Qe1 {[%emt 0:00:07]} Nc4 {[%emt 0:10:54]} 16. Qb1 {[%emt 0:01:29]} Be7 {[%emt 0:03:30]} 17. bxc4 {[%emt 0:25:27]} bxc4 {[%emt 0:00:06]} 18. Bxh7 {[%emt 0:00:04]} Nxh7 {[%emt 0:00:23]} 19. Nb5 {[%emt 0:00:06]} O-O {[%emt 0:04:46]} 20. Na7 {[%emt 0:00:16]} Ra8 {[%emt 0:02:11]} 21. Qb7 {[%emt 0:00:06]} Nf6 {[%emt 0:03:12]} 22. Rfb1 {[%emt 0:03:49]} Nh5 {[%emt 0:02:28]} 23. Bc7 {[%emt 0:03:54]} Qe8 {[%emt 0:00:01]} 24. Rb6 {[%emt 0:05:41]} Ba4 {[%emt 0:04:46]} 25. Ra2 {[%emt 0:00:33]} e5 {[%emt 0:05:45]} 26. dxe5 {[%emt 0:16:53]} Bc5+ {[%emt 0:00:22]} 27. Kf1 {[%emt 0:00:06]} d4 {[%emt 0:01:50]} 28. Qd5 {[%emt 0:04:07]} Bxb6 {[%emt 0:01:17]} 29. Bxb6 {[%emt 0:00:02]} d3 {[%emt 0:00:32]} 30. cxd3 {[%emt 0:00:24]} cxd3 {[%emt 0:00:47]} 31. Qxd3 {[%emt 0:00:26]} Nf4 {[%emt 0:04:11]} 32. Qc4 {[%emt 0:10:49]} Nxe2 {[%emt 0:01:53]} 33. Rxa4 {[%emt 0:00:08]} Nc3 {[%emt 0:01:21]} 34. Ra1 {[%emt 0:02:17]} Nb5 {[%emt 0:01:34]} 35. f4 {[%emt 0:02:15]} Qd7 {[%emt 0:01:37]} 36. Qa4 {[%emt 0:02:13]} Qd3+ {[%emt 0:00:32]} 37. Kf2 {[%emt 0:00:41]} Nxa7 {[%emt 0:01:22]} 38. Bxa7 {[%emt 0:00:13]} Rfc8 {[%emt 0:02:18]} 39. Qa3 {[%emt 0:02:41]} Rc2+ {[%emt 0:01:05]} 40. Kg1 {[%emt 0:00:01]} Qd2 {[%emt 0:01:20]} 41. Qf3 {[%emt 0:00:39]} Rxa7 {[%emt 0:00:13]} 0-1

[Event "8th Brazilian Open SESC Caioba 2024"]
[Site "Caioba"]
[Date "2024.06.27"]
[Round "6.11"]
[White "Nemeth Junior, Henrique"]
[Black "Schnaider, Ilan"]
[Result "1-0"]
[ECO "B87"]
[WhiteElo "2191"]
[BlackElo "2395"]
[Annotator "RC"]
[PlyCount "141"]
[EventDate "2024.06.15"]
[EventCountry "BRA"]
[SourceTitle "playchess.com"]
[Source "ChessBase"]
[SourceQuality "1"]
[TimeControl "5400+30"]

1. e4 {[%emt 0:00:07]} c5 {[%emt 0:00:10]} 2. Nf3 {[%emt 0:00:16]} d6 {[%emt 0:00:04]} 3. d4 {[%emt 0:00:05]} cxd4 {[%emt 0:00:03]} 4. Nxd4 {[%emt 0:00:08]} Nf6 {[%emt 0:00:03]} 5. Nc3 {[%emt 0:00:06]} a6 {[%emt 0:00:02]} 6. Bc4 {[%emt 0:00:59]} e6 {[%emt 0:00:21]} 7. Bb3 {[%emt 0:00:57]} b5 {[%emt 0:00:07]} 8. Bg5 {[%emt 0:00:07]} Be7 {[%emt 0:10:50]} 9. Qf3 {[%emt 0:00:25]} Qc7 {[%emt 0:00:32]} 10. O-O-O {[%emt 0:00:30]} O-O {[%emt 0:06:44]} 11. e5 {[%emt 0:03:58]} dxe5 {[%emt 0:18:40]} 12. Bxf6 {[%emt 0:04:34]} Bxf6 {[%emt 0:14:33]} 13. Nxe6 {[%emt 0:03:37]} fxe6 {[%emt 0:22:01]} 14. Qxa8 {[%emt 0:01:01]} b4 {[%emt 0:05:52]} 15. Na4 {[%emt 0:16:18]} Nc6 {[%emt 0:10:00]} 16. Nc5 {[%emt 0:03:39]} Be7 {[%emt 0:08:28]} 17. Nxe6 {[%emt 0:09:50]} Bxe6 {[%emt 0:00:00]} 18. Bxe6+ {[%emt 0:00:08]} Kh8 {[%emt 0:00:00]} 19. Qxa6 {[%emt 0:00:04]} Nd4 {[%emt 0:00:00]} 20. Bb3 {[%emt 0:02:44]} Rxf2 {[%emt 0:00:00]} 21. Qa8+ {[%emt 0:04:39]} Rf8 {[%emt 0:00:00]} 22. Qd5 {[%emt 0:00:58]} Bf6 {[%emt 0:00:00]} 23. Kb1 {[%emt 0:03:02]} Rc8 {[%emt 0:00:24]} 24. Rhe1 {[%emt 0:04:25]} h6 {[%emt 0:01:10]} 25. Qe4 {[%emt 0:03:52]} Qa7 {[%emt 0:00:52]} 26. Qd5 {[%emt 0:04:03]} Rd8 {[%emt 0:01:21]} 27. Qf7 {[%emt 0:01:16]} Qa8 {[%emt 0:00:37]} 28. Rf1 {[%emt 0:02:39]} Rf8 {[%emt 0:00:49]} 29. Qd5 {[%emt 0:00:27]} Qa6 {[%emt 0:00:31]} 30. Bc4 {[%emt 0:00:11]} Qa4 {[%emt 0:00:20]} 31. Qe4 {[%emt 0:00:41]} Ra8 {[%emt 0:00:30]} 32. Rxf6 {[%emt 0:00:34]} gxf6 {[%emt 0:00:19]} 33. Qg6 {[%emt 0:00:09]} Qd7 {[%emt 0:01:04]} 34. Qxh6+ {[%emt 0:00:22]} Qh7 {[%emt 0:00:01]} 35. Qxf6+ {[%emt 0:00:08]} Qg7 {[%emt 0:00:02]} 36. Qh4+ {[%emt 0:02:41]} Qh7 {[%emt 0:00:01]} 37. Qxh7+ {[%emt 0:00:38]} Kxh7 {[%emt 0:00:06]} 38. Bd3+ {[%emt 0:00:19]} Kg7 {[%emt 0:00:06]} 39. Rf1 {[%emt 0:00:06]} Re8 {[%emt 0:00:12]} 40. Be4 {[%emt 0:01:08]} Rh8 {[%emt 0:00:12]} 41. h3 {[%emt 0:00:25]} Rh4 {[%emt 0:00:05]} 42. Bd5 {[%emt 0:00:14]} Rh8 {[%emt 0:01:16]} 43. c3 {[%emt 0:01:00]} bxc3 {[%emt 0:00:25]} 44. bxc3 {[%emt 0:00:58]} Rb8+ {[%emt 0:00:04]} 45. Bb3 {[%emt 0:00:46]} Ne2 {[%emt 0:00:34]} 46. Kb2 {[%emt 0:01:01]} Rd8 {[%emt 0:01:06]} 47. Rd1 {[%emt 0:03:05]} Rf8 {[%emt 0:00:12]} 48. Rd2 {[%emt 0:00:05]} Ng3 {[%emt 0:00:05]} 49. Bd5 {[%emt 0:06:24]} e4 {[%emt 0:00:47]} 50. Rd4 {[%emt 0:00:52]} Re8 {[%emt 0:00:58]} 51. Kc2 {[%emt 0:00:16]} Re5 {[%emt 0:00:44]} 52. c4 {[%emt 0:00:56]} Kf6 {[%emt 0:01:44]} 53. a4 {[%emt 0:00:19]} Re7 {[%emt 0:01:06]} 54. a5 {[%emt 0:00:38]} Ke5 {[%emt 0:00:06]} 55. Rd1 {[%emt 0:00:04]} e3 {[%emt 0:01:00]} 56. Re1 {[%emt 0:00:40]} Kd4 {[%emt 0:00:05]} 57. a6 {[%emt 0:00:04]} e2 {[%emt 0:00:29]} 58. Bb7 {[%emt 0:00:11]} Ke3 {[%emt 0:01:02]} 59. a7 {[%emt 0:00:26]} Kf2 {[%emt 0:00:17]} 60. Rxe2+ {[%emt 0:00:26]} Rxe2+ {[%emt 0:00:07]} 61. Kb3 {[%emt 0:00:08]} Re8 {[%emt 0:00:58]} 62. a8=Q {[%emt 0:00:06]} Rxa8 {[%emt 0:00:04]} 63. Bxa8 {[%emt 0:00:04]} Nf5 {[%emt 0:00:09]} 64. c5 {[%emt 0:00:49]} Ne7 {[%emt 0:00:20]} 65. Kc4 {[%emt 0:00:09]} Kg3 {[%emt 0:00:05]} 66. Bf3 {[%emt 0:21:33]} Nf5 {[%emt 0:02:35]} 67. c6 {[%emt 0:00:30]} Ne7 {[%emt 0:00:00]} 68. Kc5 {[%emt 0:00:30]} Nc8 {[%emt 0:00:00]} 69. c7 {[%emt 0:00:30]} Ne7 {[%emt 0:00:00]} 70. Kd6 {[%emt 0:00:00]} Nc8+ {[%emt 0:02:00]} 71. Kd7 {[%emt 0:01:00]} 1-0

[Event "8th Brazilian Open SESC Caioba 2024"]
[Site "Caioba"]
[Date "2024.06.27"]
[Round "6.12"]
[White "Perdomo, Leandro"]
[Black "Nogueira, Ivan Kuhlmann"]
[Result "1-0"]
[ECO "A50"]
[WhiteElo "2391"]
[BlackElo "2184"]
[Annotator "RC"]
[PlyCount "77"]
[EventDate "2024.06.15"]
[EventCountry "BRA"]
[SourceTitle "playchess.com"]
[Source "ChessBase"]
[SourceQuality "1"]
[TimeControl "5400+30"]

1. d4 Nf6 2. c4 b6 3. f3 Nc6 4. Nc3 e5 5. d5 Ne7 6. e3 Ng6 7. Nh3 Bc5 8. a3 a5 9. Rb1 c6 10. d6 a4 11. Nxa4 Rxa4 12. Qxa4 Bxd6 13. Be2 O-O 14. O-O Ne7 15. Nf2 Bc7 16. Bd2 d5 17. cxd5 cxd5 18. Rbc1 Be6 19. Bb4 Bd6 20. Bxd6 Qxd6 21. Qb4 Qd8 22. Bd3 d4 23. e4 Nd7 24. Bc4 Nc5 25. Bxe6 fxe6 26. Qc4 Qd7 27. Nd3 Rc8 28. Nxe5 Qd6 29. Nd3 Rc6 30. Nb4 Rc8 31. Rcd1 Rd8 32. Nd3 g6 33. Nxc5 bxc5 34. b4 cxb4 35. axb4 Kf7 36. f4 Ke8 37. Qc5 Qxc5 38. bxc5 e5 39. g3 1-0

[Event "8th Brazilian Open SESC Caioba 2024"]
[Site "Caioba"]
[Date "2024.06.27"]
[Round "6.13"]
[White "Amura, Claudia"]
[Black "Cori T., Deysi"]
[Result "1/2-1/2"]
[ECO "A40"]
[WhiteElo "2167"]
[BlackElo "2389"]
[Annotator "RC"]
[PlyCount "131"]
[EventDate "2024.06.15"]
[EventCountry "BRA"]
[SourceTitle "playchess.com"]
[Source "ChessBase"]
[SourceQuality "1"]
[TimeControl "5400+30"]

1. d4 {[%emt 0:00:08]} e6 {[%emt 0:02:47]} 2. Bf4 {[%emt 0:03:42]} b6 {[%emt 0:01:29]} 3. e3 {[%emt 0:00:21]} Bb7 {[%emt 0:00:07]} 4. Nf3 {[%emt 0:00:25]} g6 {[%emt 0:01:04]} 5. h4 {[%emt 0:02:47]} Nf6 {[%emt 0:01:36]} 6. Nbd2 {[%emt 0:00:28]} Bg7 {[%emt 0:02:56]} 7. c3 {[%emt 0:04:18]} d6 {[%emt 0:02:46]} 8. Bb5+ {[%emt 0:09:06]} Nbd7 {[%emt 0:02:07]} 9. Qe2 {[%emt 0:00:05]} a6 {[%emt 0:07:01]} 10. Ba4 {[%emt 0:03:17]} Qe7 {[%emt 0:09:29]} 11. Bg5 {[%emt 0:12:31]} h6 {[%emt 0:07:11]} 12. Bxf6 {[%emt 0:00:21]} Bxf6 {[%emt 0:00:02]} 13. h5 {[%emt 0:08:23]} g5 {[%emt 0:04:53]} 14. g4 {[%emt 0:02:08]} Bg7 {[%emt 0:02:45]} 15. Bc2 {[%emt 0:01:32]} c5 {[%emt 0:02:08]} 16. Be4 {[%emt 0:04:34]} Nf6 {[%emt 0:10:16]} 17. Bxb7 {[%emt 0:00:12]} Qxb7 {[%emt 0:00:04]} 18. Rg1 {[%emt 0:00:20]} Nd5 {[%emt 0:03:23]} 19. Ne4 {[%emt 0:05:59]} Rd8 {[%emt 0:03:40]} 20. Nfd2 {[%emt 0:06:38]} Ke7 {[%emt 0:11:37]} 21. Ng3 {[%emt 0:00:56]} cxd4 {[%emt 0:03:01]} 22. exd4 {[%emt 0:10:12]} Nf4 {[%emt 0:00:04]} 23. Qc4 {[%emt 0:01:42]} b5 {[%emt 0:05:39]} 24. Qb3 {[%emt 0:00:37]} Rc8 {[%emt 0:02:50]} 25. Kf1 {[%emt 0:02:43]} Qd5 {[%emt 0:07:16]} 26. Ne2 {[%emt 0:02:33]} Nd3 {[%emt 0:06:14]} 27. Qxd5 {[%emt 0:02:07]} exd5 {[%emt 0:00:01]} 28. Rb1 {[%emt 0:01:06]} Nf4 {[%emt 0:01:18]} 29. Ng3 {[%emt 0:06:16]} Kd7 {[%emt 0:00:12]} 30. Nf5 {[%emt 0:00:09]} Bf6 {[%emt 0:00:01]} 31. Rg3 {[%emt 0:02:13]} b4 {[%emt 0:00:47]} 32. Re3 {[%emt 0:00:33]} Rc7 {[%emt 0:01:07]} 33. Nb3 {[%emt 0:01:05]} bxc3 {[%emt 0:00:27]} 34. Rxc3 {[%emt 0:00:56]} Rxc3 {[%emt 0:00:16]} 35. bxc3 {[%emt 0:00:06]} Rc8 {[%emt 0:00:15]} 36. Rc1 {[%emt 0:03:12]} Nd3 {[%emt 0:00:21]} 37. Rc2 {[%emt 0:00:04]} Nb4 {[%emt 0:00:06]} 38. Re2 {[%emt 0:00:18]} Rxc3 {[%emt 0:00:08]} 39. Nxh6 {[%emt 0:00:06]} a5 {[%emt 0:01:47]} 40. Nxa5 {[%emt 0:01:40]} Nd3 {[%emt 0:00:41]} 41. Nb3 {[%emt 0:00:46]} Nf4 {[%emt 0:00:08]} 42. Rd2 {[%emt 0:02:15]} Rh3 {[%emt 0:00:54]} 43. Kg1 {[%emt 0:00:11]} Ke6 {[%emt 0:00:33]} 44. Nf5 {[%emt 0:00:20]} Rc3 {[%emt 0:00:15]} 45. Ne3 {[%emt 0:00:36]} Bd8 {[%emt 0:00:39]} 46. Kh2 {[%emt 0:00:48]} Kf6 {[%emt 0:00:27]} 47. Kg3 {[%emt 0:00:35]} Bb6 {[%emt 0:00:33]} 48. Rc2 {[%emt 0:00:43]} Rd3 {[%emt 0:00:08]} 49. Rc6 {[%emt 0:00:13]} Bxd4 {[%emt 0:00:20]} 50. Nxd4 {[%emt 0:00:18]} Rxd4 {[%emt 0:00:04]} 51. Rxd6+ {[%emt 0:00:49]} Ke5 {[%emt 0:01:13]} 52. Ra6 {[%emt 0:00:16]} Rb4 {[%emt 0:00:41]} 53. h6 {[%emt 0:00:56]} Rb1 {[%emt 0:00:42]} 54. Kf3 {[%emt 0:01:06]} Rh1 {[%emt 0:00:28]} 55. Nf5 {[%emt 0:00:11]} Rh3+ {[%emt 0:00:31]} 56. Ng3 {[%emt 0:00:05]} f6 {[%emt 0:00:26]} 57. Ra8 {[%emt 0:00:16]} Rxh6 {[%emt 0:00:22]} 58. Re8+ {[%emt 0:00:05]} Ne6 {[%emt 0:00:03]} 59. Nf5 {[%emt 0:00:06]} Rh3+ {[%emt 0:00:11]} 60. Kg2 {[%emt 0:00:07]} Rh7 {[%emt 0:00:25]} 61. Re7 {[%emt 0:00:50]} Rxe7 {[%emt 0:01:30]} 62. Nxe7 {[%emt 0:00:05]} d4 {[%emt 0:00:23]} 63. Kf3 {[%emt 0:00:54]} Nc5 {[%emt 0:00:22]} 64. a3 {[%emt 0:00:48]} Na4 {[%emt 0:00:46]} 65. Ke2 {[%emt 0:01:11]} Nc5 {[%emt 0:00:24]} 66. f3 {[%emt 0:00:11]} 1/2-1/2

[Event "8th Brazilian Open SESC Caioba 2024"]
[Site "Caioba"]
[Date "2024.06.27"]
[Round "6.14"]
[White "Matsuura, Everaldo"]
[Black "Starke, Bruno Orlando"]
[Result "1-0"]
[ECO "E09"]
[WhiteElo "2380"]
[BlackElo "2165"]
[Annotator "RC"]
[PlyCount "43"]
[EventDate "2024.06.15"]
[EventCountry "BRA"]
[SourceTitle "playchess.com"]
[Source "ChessBase"]
[SourceQuality "1"]
[TimeControl "5400+30"]

1. d4 {[%emt 0:13:53]} d5 {[%emt 0:00:59]} 2. c4 {[%emt 0:00:39]} e6 {[%emt 0:00:38]} 3. Nf3 {[%emt 0:00:23]} c6 {[%emt 0:02:02]} 4. Qc2 {[%emt 0:00:50]} Nf6 {[%emt 0:00:54]} 5. g3 {[%emt 0:00:15]} Be7 {[%emt 0:07:36]} 6. Bg2 {[%emt 0:00:20]} O-O {[%emt 0:00:18]} 7. O-O {[%emt 0:00:12]} b6 {[%emt 0:01:40]} 8. Nbd2 {[%emt 0:00:34]} Ba6 {[%emt 0:03:50]} 9. b3 {[%emt 0:20:12]} Nbd7 {[%emt 0:01:14]} 10. e4 {[%emt 0:01:42]} Rc8 {[%emt 0:01:59]} 11. Bb2 {[%emt 0:57:00]} c5 {[%emt 0:08:38]} 12. exd5 {[%emt 0:00:00]} exd5 {[%emt 0:00:59]} 13. Rfe1 {[%emt 0:00:00]} cxd4 {[%emt 0:14:16]} 14. Nxd4 {[%emt 0:00:00]} g6 {[%emt 0:21:41]} 15. Rad1 {[%emt 0:00:00]} b5 {[%emt 0:03:06]} 16. Bh3 {[%emt 0:00:00]} Bb4 {[%emt 0:07:10]} 17. a3 {[%emt 0:00:00]} Bd6 {[%emt 0:08:35]} 18. Nf5 {[%emt 0:00:00]} gxf5 {[%emt 0:05:22]} 19. Qxf5 {[%emt 0:00:00]} h6 {[%emt 0:00:59]} 20. Re6 {[%emt 0:00:00]} fxe6 {[%emt 0:01:26]} 21. Qg6+ {[%emt 0:00:00]} Kh8 {[%emt 0:00:11]} 22. Qxh6+ {[%emt 0:00:00]} 1-0

[Event "8th Brazilian Open SESC Caioba 2024"]
[Site "Caioba"]
[Date "2024.06.27"]
[Round "6.15"]
[White "Bueno, Alfeu Junior Varela"]
[Black "Umetsubo, Cesar Hidemitsu"]
[Result "0-1"]
[ECO "C54"]
[WhiteElo "2140"]
[BlackElo "2362"]
[Annotator "RC"]
[PlyCount "132"]
[EventDate "2024.06.15"]
[EventCountry "BRA"]
[SourceTitle "playchess.com"]
[Source "ChessBase"]
[SourceQuality "1"]
[TimeControl "5400+30"]

1. e4 {[%emt 0:06:19]} e5 {[%emt 0:02:14]} 2. Nf3 {[%emt 0:07:09]} Nc6 {[%emt 0:00:24]} 3. Bc4 {[%emt 0:00:41]} Bc5 {[%emt 0:00:16]} 4. c3 {[%emt 0:02:09]} Nf6 {[%emt 0:00:08]} 5. d3 {[%emt 0:01:13]} a6 {[%emt 0:00:31]} 6. O-O {[%emt 0:01:27]} Ba7 {[%emt 0:01:02]} 7. a4 {[%emt 0:04:28]} O-O {[%emt 0:08:22]} 8. Bg5 {[%emt 0:03:36]} h6 {[%emt 0:00:16]} 9. Bh4 {[%emt 0:02:27]} d6 {[%emt 0:00:42]} 10. Nbd2 {[%emt 0:03:06]} Qe7 {[%emt 0:11:15]} 11. h3 {[%emt 0:10:18]} g5 {[%emt 0:03:36]} 12. Nxg5 {[%emt 0:07:40]} hxg5 {[%emt 0:00:38]} 13. Bxg5 {[%emt 0:00:04]} Kg7 {[%emt 0:00:41]} 14. Kh1 {[%emt 0:12:11]} Rh8 {[%emt 0:02:52]} 15. Qf3 {[%emt 0:11:32]} Be6 {[%emt 0:03:27]} 16. Bd5 {[%emt 0:02:01]} Rh7 {[%emt 0:05:15]} 17. d4 {[%emt 0:05:26]} Rah8 {[%emt 0:03:12]} 18. Bxe6 {[%emt 0:05:11]} fxe6 {[%emt 0:05:28]} 19. d5 {[%emt 0:01:29]} exd5 {[%emt 0:24:50]} 20. exd5 {[%emt 0:00:31]} Nb8 {[%emt 0:00:14]} 21. Ne4 {[%emt 0:05:32]} Nbd7 {[%emt 0:00:29]} 22. Qf5 {[%emt 0:00:57]} Qf7 {[%emt 0:04:10]} 23. f4 {[%emt 0:03:28]} Qg6 {[%emt 0:21:58]} 24. Bxf6+ {[%emt 0:02:57]} Nxf6 {[%emt 0:00:00]} 25. Qxg6+ {[%emt 0:00:28]} Kxg6 {[%emt 0:00:00]} 26. Ng5 {[%emt 0:00:31]} Re7 {[%emt 0:00:00]} 27. c4 {[%emt 0:00:29]} Nh5 {[%emt 0:00:00]} 28. Rf3 {[%emt 0:00:36]} Nxf4 {[%emt 0:00:00]} 29. Ne4 {[%emt 0:00:11]} Rg7 {[%emt 0:00:00]} 30. Re1 {[%emt 0:00:38]} Kh6 {[%emt 0:00:00]} 31. g3 {[%emt 0:00:39]} Nxh3 {[%emt 0:00:00]} 32. Kg2 {[%emt 0:00:20]} Nf4+ {[%emt 0:00:00]} 33. Rxf4 {[%emt 0:00:10]} exf4 {[%emt 0:00:00]} 34. Rh1+ {[%emt 0:00:01]} Kg6 {[%emt 0:00:00]} 35. Rxh8 {[%emt 0:00:04]} Bd4 {[%emt 0:01:11]} 36. gxf4 {[%emt 0:01:40]} Re7 {[%emt 0:00:25]} 37. f5+ {[%emt 0:00:20]} Kxf5 {[%emt 0:00:50]} 38. Ng3+ {[%emt 0:00:14]} Kg6 {[%emt 0:01:14]} 39. Rg8+ {[%emt 0:00:34]} Kf6 {[%emt 0:01:11]} 40. Rf8+ {[%emt 0:00:19]} Kg6 {[%emt 0:00:12]} 41. Rg8+ {[%emt 0:00:14]} Kf7 {[%emt 0:00:36]} 42. Rb8 {[%emt 0:00:27]} b6 {[%emt 0:00:58]} 43. Nf5 {[%emt 0:01:14]} Re2+ {[%emt 0:00:08]} 44. Kf3 {[%emt 0:00:15]} Rf2+ {[%emt 0:00:07]} 45. Ke4 {[%emt 0:00:10]} Be5 {[%emt 0:00:53]} 46. Ne3 {[%emt 0:01:04]} Ke7 {[%emt 0:01:02]} 47. b3 {[%emt 0:00:57]} Rb2 {[%emt 0:00:14]} 48. c5 {[%emt 0:00:22]} bxc5 {[%emt 0:00:41]} 49. Nc4 {[%emt 0:00:31]} Rh2 {[%emt 0:00:22]} 50. Rb7 {[%emt 0:00:39]} Kd8 {[%emt 0:00:04]} 51. Na5 {[%emt 0:00:18]} Rh4+ {[%emt 0:00:50]} 52. Ke3 {[%emt 0:00:32]} Rh3+ {[%emt 0:02:24]} 53. Ke4 {[%emt 0:00:08]} Rh4+ {[%emt 0:00:01]} 54. Ke3 {[%emt 0:00:06]} Kc8 {[%emt 0:00:49]} 55. Ra7 {[%emt 0:00:49]} Rd4 {[%emt 0:00:16]} 56. Ra8+ {[%emt 0:01:07]} Kd7 {[%emt 0:00:07]} 57. Rxa6 {[%emt 0:00:29]} Rxd5 {[%emt 0:00:01]} 58. Nc4 {[%emt 0:00:30]} Bd4+ {[%emt 0:00:24]} 59. Ke2 {[%emt 0:00:27]} Rh5 {[%emt 0:00:08]} 60. Ra8 {[%emt 0:00:34]} d5 {[%emt 0:00:08]} 61. Na3 {[%emt 0:00:19]} Rh2+ {[%emt 0:00:25]} 62. Kd1 {[%emt 0:00:12]} Rb2 {[%emt 0:01:03]} 63. Rb8 {[%emt 0:00:19]} c4 {[%emt 0:00:23]} 64. Rb5 {[%emt 0:00:24]} c6 {[%emt 0:00:08]} 65. Rb7+ {[%emt 0:00:43]} Kc8 {[%emt 0:00:07]} 66. Rf7 {[%emt 0:00:38]} cxb3 {[%emt 0:00:29]} 0-1